bitfinex-derivatives/quotes_BTCF0:USTF0_20241010
["timestamp","ask_amount","ask_price","bid_price","bid_amount"]
[1728526525178,0.27251655,60766.0,60765.0,0.06723569]
[1728526525485,0.27251655,60766.0,60765.0,0.13318948]
[1728526525676,0.27251655,60766.0,60765.0,0.13518948]
[1728526528382,0.27251655,60766.0,60765.0,0.06995379]
[1728526529079,0.27251655,60766.0,60765.0,0.13518948]
[1728526529885,0.3608,60767.0,60765.0,0.13518948]
[1728526530073,0.0463,60773.0,60766.0,0.54775379]
[1728526530281,0.06682005,60773.0,60772.0,0.082352]
[1728526530479,0.06682005,60773.0,60772.0,0.14930579]
[1728526531978,0.07382005,60773.0,60772.0,0.14930579]
[1728526532478,0.06682005,60773.0,60772.0,0.14930579]
[1728526532675,0.07982005,60773.0,60772.0,0.11010346]
[1728526533079,0.07282005,60773.0,60772.0,0.10910346]
[1728526533274,0.06782005,60773.0,60772.0,0.11410346]
[1728526533577,0.06882005,60773.0,60772.0,0.12010346]
[1728526534081,0.0445,60773.0,60772.0,0.12010346]
[1728526534882,0.0435,60773.0,60772.0,0.1140994]
[1728526535087,0.0435,60773.0,60772.0,0.1150994]
[1728526535381,0.0435,60773.0,60772.0,0.1220994]
[1728526535382,0.0445,60773.0,60772.0,0.1220994]
[1728526535587,0.0435,60773.0,60772.0,0.1150994]
[1728526535788,0.0445,60773.0,60772.0,0.1210994]
[1728526536283,0.0445,60773.0,60772.0,0.1150994]
[1728526536590,0.0435,60773.0,60772.0,0.1150994]
[1728526536780,0.0445,60773.0,60772.0,0.1210994]
[1728526537887,0.002,60773.0,60772.0,0.16229524]
[1728526538120,0.002,60773.0,60772.0,0.1140994]
[1728526538291,0.002,60773.0,60772.0,0.28829264]
[1728526538990,0.002,60773.0,60772.0,0.32948826]
[1728526539489,0.002,60773.0,60772.0,0.24780352]
[1728526541988,0.002,60773.0,60772.0,0.7066252]
[1728526542388,0.002,60773.0,60772.0,0.60860352]
[1728526542584,0.002,60773.0,60772.0,0.24780352]
[1728526542789,0.002,60773.0,60772.0,0.60860352]
[1728526543191,0.082342,60780.0,60779.0,0.082343]
[1728526543394,0.082342,60780.0,60779.0,0.23105431]
[1728526544288,0.082342,60780.0,60779.0,0.31749271]
[1728526544895,0.086342,60780.0,60779.0,0.31749271]
[1728526545193,0.086342,60780.0,60779.0,0.14928602]
[1728526547693,0.086342,60780.0,60779.0,0.1080904]
[1728526549692,0.086342,60780.0,60779.0,0.0257474]
[1728526549894,0.086342,60780.0,60779.0,0.1080904]
[1728526551890,0.086342,60780.0,60779.0,0.02574567]
[1728526552090,0.086342,60780.0,60774.0,0.082349]
[1728526552288,0.086342,60780.0,60775.0,0.02574627]
[1728526552289,0.12,60778.0,60775.0,0.02574627]
[1728526552492,0.082347,60776.0,60774.0,0.082349]
[1728526552692,0.082347,60776.0,60775.0,0.02574628]
[1728526553294,0.082347,60776.0,60775.0,0.15394562]
[1728526553492,0.082347,60776.0,60775.0,0.25206756]
[1728526553692,0.082347,60776.0,60775.0,0.21087352]
[1728526554296,0.082347,60776.0,60775.0,0.25206756]
[1728526555001,0.082347,60776.0,60775.0,0.25406756]
[1728526555222,0.082347,60776.0,60775.0,0.25706756]
[1728526556491,0.082347,60776.0,60775.0,0.15894562]
[1728526558299,0.082347,60776.0,60775.0,0.26270809]
[1728526560207,0.082347,60776.0,60775.0,0.07194032]
[1728526561136,0.082347,60776.0,60775.0,0.005]
[1728526561410,0.082347,60776.0,60775.0,0.07194033]
[1728526564308,0.082347,60776.0,60775.0,0.005]
[1728526564525,0.082347,60776.0,60775.0,0.07194033]
[1728526567435,0.082347,60776.0,60775.0,0.005]
[1728526567618,0.082347,60776.0,60775.0,0.07194033]
[1728526568310,0.082347,60776.0,60775.0,0.26295287]
[1728526569716,0.082347,60776.0,60775.0,0.34530087]
[1728526570711,0.082347,60776.0,60775.0,0.37104715]
[1728526571710,0.3608,60779.0,60778.0,0.082344]
[1728526571913,0.443143,60779.0,60778.0,0.23642661]
[1728526572411,0.3608,60779.0,60778.0,0.26217288]
[1728526572612,0.0038,60785.0,60784.0,0.082336]
[1728526572817,0.3608,60786.0,60785.0,0.082335]
[1728526573019,0.3608,60786.0,60785.0,0.36605492]
[1728526573522,0.3608,60791.0,60785.0,0.3249052]
[1728526573816,0.00246835,60793.0,60792.0,0.082325]
[1728526574005,0.00246835,60793.0,60792.0,0.4072302]
[1728526574233,0.00246835,60793.0,60792.0,0.34028987]
[1728526574415,0.00246835,60793.0,60792.0,0.2733611]
[1728526574622,0.00246835,60793.0,60792.0,0.40719755]
[1728526574918,0.00246835,60793.0,60792.0,0.36601711]
[1728526575119,0.00246835,60793.0,60792.0,0.26212329]
[1728526575616,0.00346835,60793.0,60792.0,0.26212329]
[1728526576214,0.00346835,60793.0,60792.0,0.36416843]
[1728526576215,0.00246835,60793.0,60792.0,0.36416843]
[1728526576419,0.00246835,60793.0,60792.0,0.26612329]
[1728526576911,0.4670585,60798.0,60792.0,0.26612329]
[1728526576912,0.4670585,60798.0,60794.0,0.082322]
[1728526577107,0.4670585,60798.0,60795.0,0.23575232]
[1728526577322,0.4670585,60798.0,60797.0,0.02553051]
[1728526577622,0.4670585,60798.0,60795.0,0.08169181]
[1728526577623,0.5870585,60798.0,60795.0,0.08169181]
[1728526577917,0.5870585,60798.0,60796.0,0.09244749]
[1728526578114,0.5870585,60798.0,60797.0,0.06691857]
[1728526578511,0.5870585,60798.0,60797.0,0.06791857]
[1728526580118,0.4670585,60798.0,60797.0,0.06791857]
[1728526580816,0.4670585,60798.0,60797.0,0.001]
[1728526581008,0.4670585,60798.0,60797.0,0.06791947]
[1728526583519,0.79617402,60798.0,60792.0,0.05371209]
[1728526583823,0.16398259,60794.0,60793.0,0.082324]
[1728526584117,0.22919524,60794.0,60793.0,0.082324]
[1728526584319,0.22714484,60794.0,60793.0,0.082324]
[1728526585313,0.22714484,60794.0,60793.0,0.086324]
[1728526585512,0.22714484,60794.0,60793.0,0.091324]
[1728526590325,0.24630359,60795.0,60793.0,0.091324]
[1728526590533,0.082323,60794.0,60793.0,0.091324]
[1728526591535,0.082323,60794.0,60793.0,0.085324]
[1728526591733,0.082323,60794.0,60793.0,0.089324]
[1728526593129,0.082323,60794.0,60793.0,0.17201581]
[1728526593322,0.082323,60794.0,60793.0,0.13087337]
[1728526593526,0.082323,60794.0,60793.0,0.04918156]
[1728526593735,0.082323,60794.0,60793.0,0.04518156]
[1728526593928,0.082323,60794.0,60793.0,0.04918156]
[1728526594133,0.082323,60794.0,60793.0,0.13087337]
[1728526594338,0.082323,60794.0,60793.0,0.13087344]
[1728526594849,0.082323,60794.0,60793.0,0.08769181]
[1728526595133,0.082323,60794.0,60793.0,0.21686896]
[1728526595339,0.082323,60794.0,60793.0,0.16091556]
[1728526596634,0.082323,60794.0,60793.0,0.16291556]
[1728526596838,0.082323,60794.0,60793.0,0.24523956]
[1728526598140,0.082323,60794.0,60793.0,0.24523931]
[1728526598439,0.14550385,60794.0,60793.0,0.15724379]
[1728526598639,0.082323,60794.0,60793.0,0.15724379]
[1728526598834,0.14550065,60794.0,60793.0,0.15724379]
[1728526600130,0.26027436,60794.0,60793.0,0.15724379]
[1728526600331,0.26052431,60794.0,60793.0,0.15724379]
[1728526600640,0.14550065,60794.0,60793.0,0.15724379]
[1728526601137,0.21896076,60794.0,60793.0,0.090324]
[1728526603135,0.30278733,60794.0,60793.0,0.090324]
[1728526605239,0.30318894,60794.0,60793.0,0.090324]
[1728526605546,0.082323,60794.0,60793.0,0.52003308]
[1728526605841,0.082323,60794.0,60793.0,0.3155924]
[1728526606036,0.082323,60794.0,60793.0,0.20141561]
[1728526606444,0.123823,60794.0,60793.0,0.09623949]
[1728526606635,1.217303,60794.0,60793.0,0.09623949]
[1728526606835,1.337303,60794.0,60791.0,0.09834465]
[1728526607136,0.082329,60789.0,60786.0,0.10214465]
[1728526607338,0.082329,60789.0,60785.0,0.09834465]
[1728526607339,0.082333,60786.0,60785.0,0.09834465]
[1728526607536,0.202333,60786.0,60785.0,0.09834465]
[1728526608130,0.202333,60786.0,60785.0,0.06693386]
[1728526609138,0.204333,60786.0,60785.0,0.06693386]
[1728526610240,1.297853,60786.0,60785.0,0.06693386]
[1728526610441,1.21552,60786.0,60784.0,0.06548134]
[1728526610741,0.082336,60784.0,60783.0,0.06548134]
[1728526610946,0.563136,60784.0,60783.0,0.06548134]
[1728526611141,0.563136,60784.0,60782.0,0.06548134]
[1728526611142,1.57436,60784.0,60782.0,0.06548134]
[1728526611344,0.739997,60783.0,60782.0,0.00038134]
[1728526611544,0.739997,60783.0,60781.0,0.04909111]
[1728526611848,0.082347,60776.0,60775.0,0.0038]
[1728526612147,0.082356,60769.0,60768.0,0.08563092]
[1728526612449,0.082356,60769.0,60768.0,0.06695044]
[1728526612450,0.563156,60769.0,60768.0,0.06695044]
[1728526613548,0.563156,60769.0,60768.0,0.01598687]
[1728526613946,0.564156,60769.0,60768.0,0.01598687]
[1728526614444,0.564156,60769.0,60768.0,0.02198687]
[1728526614445,0.565156,60769.0,60768.0,0.02198687]
[1728526614839,0.565156,60769.0,60768.0,0.01598687]
[1728526615050,0.564156,60769.0,60768.0,0.01698687]
[1728526615643,0.563156,60769.0,60768.0,0.01798687]
[1728526615945,0.563156,60769.0,60768.0,0.01698687]
[1728526616146,0.563156,60769.0,60768.0,0.01898687]
[1728526616346,0.563156,60769.0,60768.0,0.01798687]
[1728526616650,0.563156,60769.0,60768.0,0.01998687]
[1728526617148,0.563156,60769.0,60768.0,0.01798687]
[1728526617344,0.563156,60769.0,60768.0,0.01898687]
[1728526617542,0.563156,60769.0,60768.0,0.01798687]
[1728526617937,0.46763619,60769.0,60768.0,0.01798687]
[1728526618141,0.58763619,60769.0,60768.0,0.01898687]
[1728526618748,0.58763619,60769.0,60768.0,0.004]
[1728526619547,0.58763619,60769.0,60768.0,0.003]
[1728526620150,0.22683619,60769.0,60768.0,0.003]
[1728526620344,0.58763619,60769.0,60768.0,0.003]
[1728526620560,0.58763619,60769.0,60768.0,0.002]
[1728526621048,0.443156,60769.0,60768.0,0.122]
[1728526621259,0.3608,60777.0,60772.0,0.082352]
[1728526621260,0.082351,60774.0,60772.0,0.082352]
[1728526621552,0.082351,60774.0,60773.0,0.1639]
[1728526621944,0.38655982,60777.0,60773.0,0.1639]
[1728526622145,0.38655982,60777.0,60776.0,0.12]
[1728526622146,0.443146,60777.0,60776.0,0.12]
[1728526622349,0.443146,60777.0,60776.0,0.202347]
[1728526622649,0.443146,60777.0,60776.0,0.082347]
[1728526623054,0.449146,60777.0,60776.0,0.082347]
[1728526624549,0.449146,60777.0,60776.0,0.087347]
[1728526624550,0.450146,60777.0,60776.0,0.087347]
[1728526624855,0.444146,60777.0,60776.0,0.087347]
[1728526625054,0.445146,60777.0,60776.0,0.008]
[1728526629457,0.002,60777.0,60776.0,0.492947]
[1728526629657,0.0038,60785.0,60779.0,0.082343]
[1728526629858,0.08234,60782.0,60780.0,0.0435]
[1728526630748,0.08234,60782.0,60781.0,0.08234]
[1728526631251,0.08334,60782.0,60781.0,0.14927409]
[1728526631858,0.08434,60782.0,60781.0,0.14927409]
[1728526632060,0.08434,60782.0,60781.0,0.06693409]
[1728526632763,0.08434,60782.0,60781.0,0.07093409]
[1728526633959,0.08334,60782.0,60781.0,0.07093409]
[1728526634156,0.08234,60782.0,60781.0,0.06893409]
[1728526634458,0.08234,60782.0,60781.0,0.07293409]
[1728526634655,0.08234,60782.0,60781.0,0.07393409]
[1728526635458,0.08234,60782.0,60781.0,0.16002616]
[1728526635657,0.08234,60782.0,60781.0,0.15702616]
[1728526635856,0.08234,60782.0,60781.0,0.15902616]
[1728526636864,0.3608,60787.0,60781.0,0.15902616]
[1728526637165,0.082334,60786.0,60785.0,0.082335]
[1728526637357,0.00246878,60789.0,60788.0,0.082331]
[1728526637562,0.3608,60794.0,60788.0,0.51482616]
[1728526637860,0.3608,60794.0,60793.0,0.28405291]
[1728526637861,0.443123,60794.0,60793.0,0.28405291]
[1728526638088,0.0115,60801.0,60800.0,0.082314]
[1728526638259,0.3608,60816.0,60804.0,0.082309]
[1728526638260,0.082307,60806.0,60804.0,0.082309]
[1728526638461,0.082307,60806.0,60805.0,0.4808]
[1728526638651,0.08476874,60811.0,60805.0,0.64847432]
[1728526638848,0.08476874,60811.0,60810.0,0.12]
[1728526639050,0.08476874,60811.0,60810.0,0.4808]
[1728526640466,0.08476874,60811.0,60810.0,0.3608]
[1728526640661,0.08476874,60811.0,60810.0,0.4011]
[1728526641359,0.09476874,60811.0,60810.0,0.4021]
[1728526645255,0.09476874,60811.0,60810.0,0.42783095]
[1728526648976,0.09476874,60811.0,60810.0,0.4021]
[1728526653670,0.09476874,60811.0,60810.0,0.484401]
[1728526653671,0.01246774,60811.0,60810.0,0.484401]
[1728526653967,0.0115,60821.0,60810.0,1.11115016]
[1728526654157,0.2329,60825.0,60815.0,0.5508]
[1728526654362,0.082289,60819.0,60816.0,0.082292]
[1728526654557,0.082289,60819.0,60818.0,0.08229]
[1728526657365,0.094289,60819.0,60818.0,0.08329]
[1728526657570,0.094289,60819.0,60818.0,0.001]
[1728526657766,0.102289,60819.0,60818.0,0.002]
[1728526660905,0.102289,60819.0,60818.0,0.08429]
[1728526663469,0.102289,60819.0,60818.0,0.11001818]
[1728526663470,0.02,60819.0,60818.0,0.11001818]
[1728526663925,0.02,60819.0,60818.0,0.08429]
[1728526664069,0.02,60819.0,60818.0,0.11001814]
[1728526664265,0.02,60819.0,60818.0,0.08429]
[1728526664583,0.02,60819.0,60818.0,0.20429]
[1728526666175,0.02,60819.0,60818.0,0.23001814]
[1728526666476,0.02,60819.0,60818.0,0.39781532]
[1728526666680,0.02,60819.0,60818.0,0.31617078]
[1728526666978,0.02,60819.0,60818.0,0.34020765]
[1728526667191,0.02,60819.0,60818.0,0.31447951]
[1728526667381,0.004,60819.0,60818.0,0.4361319]
[1728526667579,0.007,60819.0,60818.0,0.3382059]
[1728526668382,0.007,60819.0,60818.0,0.4082059]
[1728526669467,0.089289,60819.0,60818.0,0.44936959]
[1728526669675,0.089289,60819.0,60818.0,0.4082059]
[1728526670975,0.089289,60819.0,60818.0,0.2182059]
[1728526671177,0.089289,60819.0,60818.0,0.25937011]
[1728526672081,0.089289,60819.0,60818.0,0.62017011]
[1728526672477,0.089289,60819.0,60818.0,0.71821587]
[1728526672878,0.089289,60819.0,60818.0,0.35741587]
[1728526673182,0.089289,60819.0,60818.0,0.71821587]
[1728526673581,0.089289,60819.0,60818.0,0.62028987]
[1728526673790,0.089289,60819.0,60818.0,0.55339927]
[1728526674093,0.089289,60819.0,60818.0,0.62029039]
[1728526675782,0.089289,60819.0,60818.0,0.71821639]
[1728526675983,0.089289,60819.0,60818.0,0.62029039]
[1728526676182,0.089289,60819.0,60818.0,0.71821639]
[1728526677188,0.089289,60819.0,60818.0,0.71821506]
[1728526677487,0.089289,60819.0,60818.0,0.62028906]
[1728526677681,0.089289,60819.0,60818.0,0.25948906]
[1728526677877,0.089289,60819.0,60818.0,0.62028906]
[1728526678185,0.089289,60819.0,60818.0,0.71821506]
[1728526678581,0.089289,60819.0,60818.0,0.62028906]
[1728526680593,0.089289,60819.0,60818.0,0.62028956]
[1728526681084,0.089289,60819.0,60818.0,0.62029747]
[1728526681582,0.089289,60819.0,60818.0,0.91315435]
[1728526681988,0.089289,60819.0,60818.0,0.55235435]
[1728526682186,0.089289,60819.0,60818.0,0.93888138]
[1728526683086,0.089289,60819.0,60818.0,0.9388814]
[1728526683296,0.089289,60819.0,60818.0,0.64255453]
[1728526683489,0.089289,60819.0,60818.0,0.64264573]
[1728526684985,0.089289,60819.0,60818.0,0.28184573]
[1728526685189,0.279289,60819.0,60818.0,0.27712667]
[1728526685493,0.279289,60819.0,60818.0,0.27732978]
[1728526686187,0.772569,60819.0,60818.0,0.08648342]
[1728526686604,0.79724165,60819.0,60818.0,0.08648342]
[1728526687191,0.79724165,60819.0,60818.0,0.16834053]
[1728526687587,0.71495265,60819.0,60817.0,0.08185711]
[1728526687789,0.08229,60818.0,60817.0,0.08185711]
[1728526687991,0.08229,60818.0,60817.0,0.16847574]
[1728526688190,0.08229,60818.0,60817.0,0.15351765]
[1728526688399,0.20229,60818.0,60817.0,0.15351765]
[1728526689188,0.20229,60818.0,60817.0,0.11234902]
[1728526689389,0.20429,60818.0,60817.0,0.11234902]
[1728526689588,0.08429,60818.0,60817.0,0.11234902]
[1728526690289,0.08429,60818.0,60817.0,0.18484765]
[1728526690290,0.005,60818.0,60817.0,0.18484765]
[1728526690490,0.005,60818.0,60817.0,0.33883151]
[1728526690690,0.005,60818.0,60817.0,0.36489273]
[1728526692500,0.005,60818.0,60817.0,0.55489273]
[1728526692694,0.082281,60825.0,60822.0,0.082284]
[1728526692895,0.082281,60825.0,60824.0,0.19]
[1728526693098,0.082281,60825.0,60824.0,0.30234841]
[1728526693398,0.082281,60825.0,60824.0,0.36923677]
[1728526693801,0.082281,60825.0,60824.0,0.30234492]
[1728526693988,0.093281,60825.0,60824.0,0.3692333]
[1728526694497,0.093281,60825.0,60824.0,0.32807122]
[1728526694700,0.093281,60825.0,60824.0,0.32765772]
[1728526694898,0.082281,60825.0,60824.0,0.32765772]
[1728526695094,0.093281,60825.0,60824.0,0.32865772]
[1728526695400,0.102281,60825.0,60824.0,0.42683936]
[1728526696005,0.102281,60825.0,60824.0,0.41093972]
[1728526696006,0.02,60825.0,60824.0,0.41093972]
[1728526696194,0.011,60825.0,60824.0,0.41093972]
[1728526696393,0.02,60825.0,60824.0,0.41193972]
[1728526697101,0.02,60825.0,60824.0,0.51434787]
[1728526697292,0.02,60825.0,60824.0,0.46289528]
[1728526697495,0.02,60825.0,60824.0,0.51434144]
[1728526699306,0.02,60825.0,60824.0,1.27434144]
[1728526699501,0.02,60825.0,60824.0,0.51385463]
[1728526699729,0.0038,60831.0,60824.0,0.51385463]
[1728526699730,0.0038,60831.0,60830.0,0.272274]
[1728526699896,0.00246652,60832.0,60831.0,0.082272]
[1728526700093,0.00246652,60832.0,60831.0,0.31069847]
[1728526700704,0.08473752,60832.0,60831.0,0.31069847]
[1728526700902,0.08473752,60832.0,60831.0,0.25983886]
[1728526701109,0.08473752,60832.0,60831.0,0.24983555]
[1728526701410,0.09073752,60832.0,60831.0,0.15284624]
[1728526702307,0.09473752,60832.0,60831.0,0.15284624]
[1728526703594,0.09473752,60832.0,60831.0,0.06702062]
[1728526704605,0.09473752,60832.0,60831.0,0.0413]
[1728526704805,0.09473752,60832.0,60831.0,0.06702227]
[1728526705009,0.09473752,60832.0,60831.0,0.14929427]
[1728526705633,0.09473752,60832.0,60831.0,0.123572]
[1728526705801,0.09473752,60832.0,60831.0,0.17501604]
[1728526706297,0.01246652,60832.0,60831.0,0.17501604]
[1728526706504,0.01,60832.0,60831.0,0.17501604]
[1728526706797,0.01,60832.0,60831.0,0.21481604]
[1728526708305,0.01,60832.0,60831.0,0.21481435]
[1728526710307,0.01,60832.0,60831.0,0.18909402]
[1728526710622,0.01,60832.0,60831.0,0.30019901]
[1728526712147,0.01,60832.0,60831.0,0.2487566]
[1728526712417,0.01,60832.0,60831.0,0.27447737]
[1728526714516,0.01,60832.0,60831.0,0.39447737]
[1728526714717,0.01,60832.0,60831.0,0.35467737]
[1728526716233,0.01,60832.0,60831.0,0.3289566]
[1728526716518,0.01,60832.0,60831.0,0.35467761]
[1728526717912,0.0038,60839.0,60838.0,0.082263]
[1728526718129,0.082256,60843.0,60838.0,0.082263]
[1728526718130,0.082256,60843.0,60842.0,0.082258]
[1728526718414,0.082256,60843.0,60842.0,0.17317975]
[1728526719712,0.082256,60843.0,60842.0,0.14745874]
[1728526719914,0.082256,60843.0,60842.0,0.17317736]
[1728526720315,0.00246577,60848.0,60842.0,0.09091936]
[1728526720510,0.00246577,60848.0,60843.0,0.09091936]
[1728526720511,0.082255,60844.0,60843.0,0.09091936]
[1728526720715,0.082255,60844.0,60843.0,0.09095337]
[1728526722413,0.082255,60844.0,60843.0,0.02571862]
[1728526723117,0.082255,60844.0,60843.0,0.02671862]
[1728526723343,0.082255,60844.0,60843.0,0.001]
[1728526723517,0.086255,60844.0,60843.0,0.02771875]
[1728526724913,0.004,60844.0,60843.0,0.19509275]
[1728526725116,0.004,60844.0,60843.0,0.33418206]
[1728526725424,0.004,60844.0,60843.0,0.23619275]
[1728526725630,0.004,60844.0,60843.0,1.12295424]
[1728526725820,0.004,60844.0,60843.0,1.09724075]
[1728526726417,0.004,60844.0,60843.0,1.28624075]
[1728526727017,0.004,60844.0,60843.0,1.28524075]
[1728526731923,0.004,60844.0,60843.0,0.52524075]
[1728526732629,0.004,60844.0,60843.0,0.52524902]
[1728526733019,0.0038,60851.0,60850.0,0.082247]
[1728526733229,0.408719,60871.0,60850.0,0.082247]
[1728526733230,0.1253,60859.0,60855.0,0.08224]
[1728526733417,0.1215,60859.0,60858.0,0.19]
[1728526733616,0.1215,60859.0,60856.0,0.082238]
[1728526734926,0.1215,60859.0,60858.0,0.06514755]
[1728526735324,0.1215,60859.0,60856.0,0.082238]
[1728526735524,0.1215,60859.0,60858.0,0.06513941]
[1728526735725,0.1215,60859.0,60858.0,0.09085162]
[1728526736120,0.1215,60859.0,60858.0,0.09185162]
[1728526737527,0.1215,60859.0,60858.0,0.02771221]
[1728526737732,0.203735,60859.0,60858.0,0.02771221]
[1728526739231,1.296695,60859.0,60853.0,0.06513941]
[1728526739529,0.19,60857.0,60854.0,0.02571397]
[1728526739727,0.082239,60856.0,60855.0,0.02571397]
[1728526739925,0.082239,60856.0,60852.0,0.06513941]
[1728526740124,0.082241,60854.0,60853.0,0.02571417]
[1728526740326,0.082241,60854.0,60853.0,0.06785684]
[1728526740643,0.082241,60854.0,60853.0,0.0421427]
[1728526740939,0.082241,60854.0,60853.0,0.0102571]
[1728526742028,0.001,60856.0,60852.0,0.001]
[1728526742227,0.082243,60853.0,60852.0,0.001]
[1728526742428,0.001,60856.0,60852.0,0.001]
[1728526742627,0.001,60856.0,60855.0,0.08224]
[1728526742822,0.38657688,60860.0,60854.0,0.19]
[1728526743030,0.38657688,60860.0,60858.0,0.082236]
[1728526743251,0.38569688,60860.0,60858.0,0.082236]
[1728526744635,0.02489688,60860.0,60858.0,0.082236]
[1728526744935,0.082233,60860.0,60858.0,0.082236]
[1728526745137,0.082233,60860.0,60858.0,0.083236]
[1728526745529,0.082235,60859.0,60858.0,0.083236]
[1728526745834,0.003,60860.0,60859.0,0.082235]
[1728526746137,0.003,60860.0,60859.0,0.633035]
[1728526746635,0.02818678,60871.0,60859.0,0.5508]
[1728526746839,0.0412,60873.0,60863.0,0.19]
[1728526746840,0.082221,60869.0,60863.0,0.19]
[1728526747134,0.082221,60869.0,60865.0,0.082226]
[1728526747836,0.082224,60867.0,60865.0,0.082226]
[1728526748234,0.082224,60867.0,60866.0,0.06519734]
[1728526749542,0.082224,60867.0,60866.0,0.06519643]
[1728526749733,0.082224,60867.0,60866.0,0.06619643]
[1728526750038,0.085224,60867.0,60866.0,0.06719643]
[1728526750249,0.085224,60867.0,60866.0,0.002]
[1728526750832,0.085224,60867.0,60866.0,0.06721198]
[1728526751032,0.085224,60867.0,60866.0,0.002]
[1728526751929,0.446024,60867.0,60866.0,0.002]
[1728526753335,0.46992317,60867.0,60866.0,0.002]
[1728526754438,0.10912317,60867.0,60866.0,0.002]
[1728526754826,0.46992317,60867.0,60866.0,0.002]
[1728526755026,0.10912317,60867.0,60866.0,0.06721198]
[1728526755238,0.003,60867.0,60866.0,0.10993392]
[1728526756237,0.003,60867.0,60866.0,0.17522222]
[1728526758038,0.003,60867.0,60866.0,0.175233]
[1728526758538,0.003,60867.0,60866.0,0.10993459]
[1728526758842,0.003,60867.0,60866.0,0.17523374]
[1728526759638,0.003,60867.0,60866.0,0.14952415]
[1728526760439,0.003,60867.0,60866.0,0.084225]
[1728526760659,0.003,60867.0,60866.0,0.14952991]
[1728526760845,0.003,60867.0,60866.0,0.084225]
[1728526761032,0.003,60867.0,60866.0,0.10993388]
[1728526762746,0.003,60867.0,60866.0,0.02766561]
[1728526762747,0.23671425,60867.0,60866.0,0.02766561]
[1728526763047,0.23671425,60867.0,60866.0,0.02570888]
[1728526763448,0.14800346,60867.0,60866.0,0.38650888]
[1728526763638,0.13132169,60871.0,60866.0,1.47938491]
[1728526763832,0.15383081,60877.0,60866.0,1.47938491]
[1728526763833,0.1475662,60868.0,60867.0,0.082224]
[1728526764038,0.00246461,60877.0,60867.0,0.21570485]
[1728526764039,0.1475662,60869.0,60867.0,0.21570485]
[1728526764240,0.1475662,60869.0,60866.0,0.72364]
[1728526764241,0.1475662,60869.0,60868.0,1.032222]
[1728526764443,0.16398259,60872.0,60871.0,0.082218]
[1728526764640,0.16398259,60872.0,60871.0,0.10792277]
[1728526765634,0.16398259,60872.0,60871.0,0.11292277]
[1728526765861,0.16398259,60872.0,60871.0,0.092218]
[1728526767743,0.26259285,60876.0,60871.0,0.093218]
[1728526767744,0.14761605,60874.0,60871.0,0.093218]
[1728526767936,0.08638276,60873.0,60871.0,0.093218]
[1728526768133,0.14761605,60874.0,60871.0,0.093218]
[1728526768334,0.086382,60873.0,60872.0,0.082217]
[1728526769548,0.086382,60873.0,60872.0,0.087217]
[1728526770950,0.082212,60876.0,60872.0,0.087217]
[1728526771349,0.19626461,60877.0,60872.0,0.092217]
[1728526771547,0.082216,60874.0,60872.0,0.092217]
[1728526772248,0.082216,60873.0,60872.0,0.007]
[1728526772748,0.082216,60873.0,60872.0,0.003]
[1728526772948,0.082216,60873.0,60872.0,0.02970541]
[1728526773251,0.082216,60873.0,60872.0,0.02870541]
[1728526774469,0.082216,60873.0,60872.0,0.003]
[1728526774646,0.082216,60873.0,60872.0,0.02870541]
[1728526775048,0.082216,60873.0,60872.0,0.03070541]
[1728526775248,0.082216,60873.0,60872.0,0.09601893]
[1728526775450,0.082216,60873.0,60872.0,0.09401893]
[1728526775860,0.082216,60873.0,60872.0,0.09801893]
[1728526776751,0.082216,60873.0,60872.0,0.03270541]
[1728526777867,0.082216,60873.0,60872.0,0.005]
[1728526778055,0.2222957,60873.0,60872.0,0.00554814]
[1728526778251,0.30799471,60873.0,60872.0,0.00554814]
[1728526778652,0.30799471,60873.0,60872.0,0.00654814]
[1728526779157,0.62396287,60873.0,60872.0,0.00152751]
[1728526779352,0.62396287,60873.0,60870.0,0.3608]
[1728526779353,0.082221,60869.0,60867.0,0.0038]
[1728526779553,0.32680712,60868.0,60866.0,0.082225]
[1728526779745,0.32680712,60867.0,60866.0,0.082225]
[1728526779948,0.22577871,60867.0,60866.0,0.082225]
[1728526780748,0.22577871,60867.0,60863.0,0.38531795]
[1728526780954,0.22577871,60867.0,60858.0,0.19]
[1728526780955,0.19,60865.0,60859.0,0.082234]
[1728526781154,0.082233,60861.0,60859.0,0.082234]
[1728526781351,0.14008001,60860.0,60859.0,0.082234]
[1728526781556,0.32595069,60860.0,60859.0,0.082234]
[1728526781752,0.5065112,60860.0,60859.0,0.082234]
[1728526781956,0.32595069,60860.0,60859.0,0.082234]
[1728526782565,0.51595069,60860.0,60859.0,0.086234]
[1728526782752,0.51595069,60860.0,60859.0,0.091234]
[1728526782952,0.69651825,60860.0,60859.0,0.087234]
[1728526783257,0.69651825,60860.0,60859.0,0.090234]
[1728526783865,0.77875125,60860.0,60859.0,0.090234]
[1728526784356,0.77875125,60860.0,60859.0,0.089234]
[1728526784564,0.77875125,60860.0,60859.0,0.086234]
[1728526784756,0.77875125,60860.0,60859.0,0.089234]
[1728526785258,0.67857927,60860.0,60859.0,0.087234]
[1728526785553,0.67857927,60860.0,60859.0,0.005]
[1728526785554,0.59813054,60860.0,60859.0,0.005]
[1728526785757,0.59535545,60860.0,60859.0,0.005]
[1728526785961,0.272233,60860.0,60859.0,0.09228867]
[1728526786555,0.2970564,60860.0,60859.0,0.17398576]
[1728526787881,0.2970564,60860.0,60859.0,0.08669709]
[1728526788064,0.2970564,60860.0,60859.0,0.17000797]
[1728526788563,0.2970564,60860.0,60859.0,0.001]
[1728526789362,0.272233,60860.0,60859.0,0.001]
[1728526793060,0.77119501,60860.0,60859.0,0.001]
[1728526793260,0.77119501,60860.0,60859.0,0.00024277]
[1728526793565,0.90239303,60860.0,60859.0,0.00024277]
[1728526794366,0.83239303,60860.0,60859.0,0.00024277]
[1728526795171,0.34039501,60860.0,60859.0,0.00024277]
[1728526795956,0.34039501,60860.0,60859.0,0.02595512]
[1728526797258,0.34020421,60860.0,60859.0,0.02595512]
[1728526797997,0.38085778,60860.0,60859.0,0.00024277]